[Event "Titled Tuesday Blitz September 27 Early 2022"]
[White "Saucey, Michel"]
[Black "Garv Gaur"]
[WhiteFideId "601845"]
[BlackFideId "45030839"]
[WhiteElo "2253"]
[BlackElo "1950"]
[Result "1/2-1/2"]
[Round "05"]
[TimeControl "180+1"]
[Date "2022.09.27"]
[WhiteClock "0:00:12"]
[BlackClock "0:00:13"]

1. d4 {[%clk 0:03:00]}  d5 {[%clk 0:02:58]} 2. Nf3 {[%clk 0:03:00]}  Nf6 {[%clk 0:02:57]} 3. c4 {[%clk 0:03:00]}  e6 {[%clk 0:02:56]} 4. Nc3 {[%clk 0:02:59]}  Be7 {[%clk 0:02:54]} 5. Bg5 {[%clk 0:02:59]}  O-O {[%clk 0:02:54]} 6. e3 {[%clk 0:02:58]}  b6 {[%clk 0:02:52]} 7. Be2 {[%clk 0:02:57]}  Bb7 {[%clk 0:02:52]} 8. Bxf6 {[%clk 0:02:53]}  Bxf6 {[%clk 0:02:52]} 9. cxd5 {[%clk 0:02:54]}  exd5 {[%clk 0:02:50]} 10. b4 {[%clk 0:02:53]}  c6 {[%clk 0:02:48]} 11. O-O {[%clk 0:02:52]}  a5 {[%clk 0:02:45]} 12. a3 {[%clk 0:02:40]}  axb4 {[%clk 0:02:43]} 13. axb4 {[%clk 0:02:40]}  Rxa1 {[%clk 0:02:44]} 14. Qxa1 {[%clk 0:02:39]}  Qc7 {[%clk 0:02:41]} 15. Qb2 {[%clk 0:02:37]}  b5 {[%clk 0:02:28]} 16. Ne1 {[%clk 0:02:30]}  Nd7 {[%clk 0:02:23]} 17. Nd3 {[%clk 0:02:29]}  Ra8 {[%clk 0:02:20]} 18. Ra1 {[%clk 0:02:21]}  Qb8 {[%clk 0:02:18]} 19. Bg4 {[%clk 0:02:03]}  Nb6 {[%clk 0:02:05]} 20. Nc5 {[%clk 0:02:02]}  Bc8 {[%clk 0:02:02]} 21. Be2 {[%clk 0:01:54]}  Be7 {[%clk 0:01:56]} 22. g3 {[%clk 0:01:46]}  Ra7 {[%clk 0:01:48]} 23. Rxa7 {[%clk 0:01:45]}  Qxa7 {[%clk 0:01:45]} 24. Bd3 {[%clk 0:01:26]}  Nd7 {[%clk 0:01:37]} 25. Ne2 {[%clk 0:01:23]}  Nxc5 {[%clk 0:01:29]} 26. dxc5 {[%clk 0:01:23]}  Bf6 {[%clk 0:01:28]} 27. Nd4 {[%clk 0:01:23]}  Bd7 {[%clk 0:01:28]} 28. Be2 {[%clk 0:01:17]}  Qa4 {[%clk 0:01:26]} 29. Kg2 {[%clk 0:01:13]}  h6 {[%clk 0:01:20]} 30. Qd2 {[%clk 0:01:07]}  Qa1 {[%clk 0:01:13]} 31. Bd1 {[%clk 0:00:58]}  Qb1 {[%clk 0:01:07]} 32. h3 {[%clk 0:00:54]}  Bf5 {[%clk 0:01:00]} 33. Nxc6 {[%clk 0:00:34]}  Be4+ {[%clk 0:00:49]} 34. f3 {[%clk 0:00:32]}  Bd3 {[%clk 0:00:49]} 35. Nd4 {[%clk 0:00:31]}  Bd8 {[%clk 0:00:32]} 36. c6 {[%clk 0:00:25]}  Bb6 {[%clk 0:00:32]} 37. Bc2 {[%clk 0:00:19]}  Bxc2 {[%clk 0:00:27]} 38. Qxc2 {[%clk 0:00:19]}  Qxc2+ {[%clk 0:00:20]} 39. Nxc2 {[%clk 0:00:18]}  Kf8 {[%clk 0:00:21]} 40. Nd4 {[%clk 0:00:18]}  Bxd4 {[%clk 0:00:20]} 41. exd4 {[%clk 0:00:18]}  Ke7 {[%clk 0:00:21]} 42. Kf2 {[%clk 0:00:16]}  Kd6 {[%clk 0:00:22]} 43. Ke3 {[%clk 0:00:17]}  Kxc6 {[%clk 0:00:22]} 44. Kf4 {[%clk 0:00:18]}  Kd6 {[%clk 0:00:23]} 45. Kf5 {[%clk 0:00:17]}  Ke7 {[%clk 0:00:22]} 46. h4 {[%clk 0:00:16]}  f6 {[%clk 0:00:08]} 47. Kg6 {[%clk 0:00:14]}  Kf8 {[%clk 0:00:09]} 48. h5 {[%clk 0:00:13]}  Kg8 {[%clk 0:00:09]} 49. g4 {[%clk 0:00:13]}  Kf8 {[%clk 0:00:09]} 50. f4 {[%clk 0:00:13]}  Kg8 {[%clk 0:00:09]} 51. g5 {[%clk 0:00:13]}  hxg5 {[%clk 0:00:09]} 52. fxg5 {[%clk 0:00:13]}  fxg5 {[%clk 0:00:10]} 53. Kxg5 {[%clk 0:00:13]}  Kh7 {[%clk 0:00:10]} 54. Kh4 {[%clk 0:00:11]}  Kh6 {[%clk 0:00:10]} 55. Kg4 {[%clk 0:00:11]}  g6 {[%clk 0:00:10]} 56. hxg6 {[%clk 0:00:11]}  Kxg6 {[%clk 0:00:11]} 57. Kf4 {[%clk 0:00:11]}  Kf6 {[%clk 0:00:12]} 58. Kg4 {[%clk 0:00:12]}  Kg6 {[%clk 0:00:12]} 59. Kf4 {[%clk 0:00:12]}  Kf6 {[%clk 0:00:13]} 60. Kg4 {[%clk 0:00:12]}  Kg6 {[%clk 0:00:13]} 1/2-1/2


[Site "https://www.chess.com"]

[Event "Titled Tuesday Blitz September 27 Early 2022"]
[White "Sipila, Vilka"]
[Black "Abdrlauf, Elham"]
[WhiteFideId "505455"]
[BlackFideId "1533533"]
[WhiteElo "2329"]
[BlackElo "2409"]
[Result "1-0"]
[Round "05"]
[TimeControl "180+1"]
[Date "2022.09.27"]
[WhiteClock "0:00:17"]
[BlackClock "0:00:03"]

1. b3 {[%clk 0:02:47]}  e5 {[%clk 0:02:59]} 2. Bb2 {[%clk 0:02:48]}  Nc6 {[%clk 0:03:00]} 3. e3 {[%clk 0:02:48]}  Nf6 {[%clk 0:03:00]} 4. Bb5 {[%clk 0:02:49]}  Bd6 {[%clk 0:03:01]} 5. Na3 {[%clk 0:02:49]}  O-O {[%clk 0:03:00]} 6. Nc4 {[%clk 0:02:47]}  Qe7 {[%clk 0:02:50]} 7. Ne2 {[%clk 0:02:43]}  a6 {[%clk 0:02:50]} 8. Bxc6 {[%clk 0:02:39]}  dxc6 {[%clk 0:02:51]} 9. O-O {[%clk 0:02:35]}  Re8 {[%clk 0:02:29]} 10. f4 {[%clk 0:02:31]}  e4 {[%clk 0:02:25]} 11. h3 {[%clk 0:02:28]}  b5 {[%clk 0:02:14]} 12. Nxd6 {[%clk 0:02:27]}  cxd6 {[%clk 0:02:15]} 13. g4 {[%clk 0:02:27]}  Nd7 {[%clk 0:01:58]} 14. g5 {[%clk 0:02:21]}  Nf8 {[%clk 0:01:43]} 15. Ng3 {[%clk 0:02:18]}  g6 {[%clk 0:00:56]} 16. h4 {[%clk 0:02:14]}  d5 {[%clk 0:00:51]} 17. h5 {[%clk 0:02:14]}  c5 {[%clk 0:00:43]} 18. hxg6 {[%clk 0:02:13]}  fxg6 {[%clk 0:00:42]} 19. Bf6 {[%clk 0:02:01]}  Qf7 {[%clk 0:00:40]} 20. f5 {[%clk 0:02:01]}  gxf5 {[%clk 0:00:28]} 21. Rxf5 {[%clk 0:01:57]}  Ng6 {[%clk 0:00:25]} 22. Qh5 {[%clk 0:01:52]}  Be6 {[%clk 0:00:14]} 23. Raf1 {[%clk 0:01:51]}  Qd7 {[%clk 0:00:13]} 24. Bb2 {[%clk 0:01:48]}  Rf8 {[%clk 0:00:13]} 25. Rf6 {[%clk 0:01:45]}  Rxf6 {[%clk 0:00:06]} 26. Rxf6 {[%clk 0:01:46]}  Qe7 {[%clk 0:00:01]} 27. Rxg6+ {[%clk 0:01:44]}  hxg6 {[%clk 0:00:01]} 28. Qxg6+ {[%clk 0:01:45]}  Kf8 {[%clk 0:00:02]} 29. Nh5 {[%clk 0:01:45]}  Qf7 {[%clk 0:00:01]} 30. Qh6+ {[%clk 0:01:39]}  Ke7 {[%clk 0:00:01]} 31. Bf6+ {[%clk 0:01:35]}  Kd7 {[%clk 0:00:02]} 32. g6 {[%clk 0:01:34]}  Rg8 {[%clk 0:00:02]} 33. g7 {[%clk 0:01:29]}  Bg4 {[%clk 0:00:03]} 34. Nf4 {[%clk 0:01:28]}  Bf5 {[%clk 0:00:03]} 35. Be5 {[%clk 0:01:27]}  Be6 {[%clk 0:00:03]} 36. c4 {[%clk 0:01:24]}  bxc4 {[%clk 0:00:03]} 37. bxc4 {[%clk 0:01:24]}  dxc4 {[%clk 0:00:03]} 38. Qh7 {[%clk 0:01:23]}  Qf5 {[%clk 0:00:02]} 39. Qxf5 {[%clk 0:01:21]}  Bxf5 {[%clk 0:00:03]} 40. Kf2 {[%clk 0:01:18]}  Be6 {[%clk 0:00:04]} 41. a3 {[%clk 0:01:16]}  Bf7 {[%clk 0:00:04]} 42. Kg3 {[%clk 0:01:16]}  Kc6 {[%clk 0:00:04]} 43. Kg4 {[%clk 0:01:16]}  Rd8 {[%clk 0:00:04]} 44. Bc3 {[%clk 0:01:16]}  Kb5 {[%clk 0:00:03]} 45. Kf5 {[%clk 0:01:15]}  Re8 {[%clk 0:00:03]} 46. Kf6 {[%clk 0:01:15]}  Bg8 {[%clk 0:00:04]} 47. Ng6 {[%clk 0:01:14]}  Re6+ {[%clk 0:00:03]} 48. Kf5 {[%clk 0:01:13]}  Re8 {[%clk 0:00:04]} 49. Ne5 {[%clk 0:01:00]}  Ka4 {[%clk 0:00:04]} 50. Kf4 {[%clk 0:00:53]}  Kxa3 {[%clk 0:00:04]} 51. Ng4 {[%clk 0:00:53]}  Kb3 {[%clk 0:00:02]} 52. Nf6 {[%clk 0:00:52]}  Rc8 {[%clk 0:00:02]} 53. Kf5 {[%clk 0:00:41]}  Ka4 {[%clk 0:00:02]} 54. Nxg8 {[%clk 0:00:37]}  Rxg8 {[%clk 0:00:03]} 55. Ke6 {[%clk 0:00:37]}  Rb8 {[%clk 0:00:02]} 56. Kf7 {[%clk 0:00:36]}  Rb7+ {[%clk 0:00:02]} 57. Kg6 {[%clk 0:00:30]}  Rb8 {[%clk 0:00:02]} 58. Kh7 {[%clk 0:00:19]}  Rb6 {[%clk 0:00:03]} 59. g8=Q {[%clk 0:00:18]}  Kb3 {[%clk 0:00:02]} 60. Qd5 {[%clk 0:00:16]}  Rb5 {[%clk 0:00:02]} 61. Qxe4 {[%clk 0:00:16]}  Ka2 {[%clk 0:00:01]} 62. Qc2+ {[%clk 0:00:16]}  Ka3 {[%clk 0:00:02]} 63. Qc1+ {[%clk 0:00:17]}  Ka4 {[%clk 0:00:01]} 64. Qa1+ {[%clk 0:00:17]}  Kb3 {[%clk 0:00:02]} 65. Qb2+ {[%clk 0:00:17]}  Ka4 {[%clk 0:00:03]} 66. Qa2# {[%clk 0:00:17]} 1-0


[Site "https://www.chess.com"]

[Event "Titled Tuesday Blitz September 27 Early 2022"]
[White "Smietanska, Wiktoria"]
[Black "Baches Garcia, Guillermo"]
[WhiteFideId "21869359"]
[BlackFideId "2209764"]
[WhiteElo "1847"]
[BlackElo "2424"]
[Result "1-0"]
[Round "05"]
[TimeControl "180+1"]
[Date "2022.09.27"]
[WhiteClock "0:00:04"]
[BlackClock "0:00:41"]

1. c4 {[%clk 0:03:00]}  e5 {[%clk 0:02:59]} 2. Nc3 {[%clk 0:02:59]}  Nf6 {[%clk 0:03:00]} 3. Nf3 {[%clk 0:02:57]}  Nc6 {[%clk 0:02:59]} 4. e4 {[%clk 0:02:55]}  g6 {[%clk 0:02:55]} 5. d4 {[%clk 0:02:52]}  exd4 {[%clk 0:02:55]} 6. Nxd4 {[%clk 0:02:53]}  Bg7 {[%clk 0:02:53]} 7. Be2 {[%clk 0:02:48]}  Nxe4 {[%clk 0:02:35]} 8. Nxe4 {[%clk 0:02:00]}  Bxd4 {[%clk 0:02:28]} 9. Bg5 {[%clk 0:01:47]}  f6 {[%clk 0:02:24]} 10. Bh4 {[%clk 0:01:34]}  Qe7 {[%clk 0:02:04]} 11. Nc3 {[%clk 0:01:20]}  Bxc3+ {[%clk 0:01:43]} 12. bxc3 {[%clk 0:01:21]}  d6 {[%clk 0:01:42]} 13. O-O {[%clk 0:01:15]}  O-O {[%clk 0:01:40]} 14. Re1 {[%clk 0:01:10]}  Qf7 {[%clk 0:01:34]} 15. Bf3 {[%clk 0:01:06]}  Ne5 {[%clk 0:00:59]} 16. Bd5 {[%clk 0:00:55]}  Be6 {[%clk 0:00:58]} 17. Bxb7 {[%clk 0:00:16]}  Rae8 {[%clk 0:00:58]} 18. Bd5 {[%clk 0:00:13]}  Nxc4 {[%clk 0:00:54]} 19. Rxe6 {[%clk 0:00:12]}  Rxe6 {[%clk 0:00:53]} 20. Bxc4 {[%clk 0:00:11]}  Rfe8 {[%clk 0:00:51]} 21. Qd2 {[%clk 0:00:05]}  c6 {[%clk 0:00:45]} 22. Bxe6 {[%clk 0:00:05]}  Rxe6 {[%clk 0:00:45]} 23. Bg3 {[%clk 0:00:06]}  d5 {[%clk 0:00:44]} 24. h3 {[%clk 0:00:06]}  Kg7 {[%clk 0:00:44]} 25. Rb1 {[%clk 0:00:06]}  Re7 {[%clk 0:00:43]} 26. Rb8 {[%clk 0:00:06]}  Qe6 {[%clk 0:00:43]} 27. Bf4 {[%clk 0:00:04]}  g5 {[%clk 0:00:43]} 28. Be3 {[%clk 0:00:04]}  h5 {[%clk 0:00:42]} 29. Ra8 {[%clk 0:00:03]}  g4 {[%clk 0:00:36]} 30. Rxa7 {[%clk 0:00:02]}  gxh3 {[%clk 0:00:36]} 31. Rxe7+ {[%clk 0:00:02]}  Qxe7 {[%clk 0:00:36]} 32. Qd4 {[%clk 0:00:02]}  Qe4 {[%clk 0:00:37]} 33. Qxe4 {[%clk 0:00:02]}  dxe4 {[%clk 0:00:37]} 34. gxh3 {[%clk 0:00:03]}  f5 {[%clk 0:00:38]} 35. a4 {[%clk 0:00:03]}  Kf7 {[%clk 0:00:39]} 36. a5 {[%clk 0:00:03]}  Ke6 {[%clk 0:00:40]} 37. a6 {[%clk 0:00:04]}  Kd5 {[%clk 0:00:41]} 38. a7 {[%clk 0:00:04]} 1-0


[Site "https://www.chess.com"]

[Event "Titled Tuesday Blitz September 27 Early 2022"]
[White "Stanisz, Patryk"]
[Black "Azaiez, Fahmi"]
[WhiteFideId "1123106"]
[BlackFideId "5500818"]
[WhiteElo "1833"]
[BlackElo "2480"]
[Result "1-0"]
[Round "05"]
[TimeControl "180+1"]
[Date "2022.09.27"]
[WhiteClock "0:00:05"]
[BlackClock "0:00:52"]

1. d4 {[%clk 0:03:00]}  Nf6 {[%clk 0:02:55]} 2. c4 {[%clk 0:03:00]}  e6 {[%clk 0:02:55]} 3. Nc3 {[%clk 0:03:00]}  Bb4 {[%clk 0:02:55]} 4. Qc2 {[%clk 0:02:59]}  Nc6 {[%clk 0:02:55]} 5. Nf3 {[%clk 0:02:59]}  d6 {[%clk 0:02:51]} 6. Bg5 {[%clk 0:02:55]}  h6 {[%clk 0:02:50]} 7. Bh4 {[%clk 0:02:55]}  g5 {[%clk 0:02:50]} 8. Bg3 {[%clk 0:02:55]}  g4 {[%clk 0:02:50]} 9. Nd2 {[%clk 0:02:47]}  Nxd4 {[%clk 0:02:50]} 10. Qd3 {[%clk 0:02:43]}  e5 {[%clk 0:02:38]} 11. e3 {[%clk 0:02:40]}  Bf5 {[%clk 0:02:36]} 12. e4 {[%clk 0:02:31]}  Bd7 {[%clk 0:02:32]} 13. Bh4 {[%clk 0:02:24]}  Bxc3 {[%clk 0:02:29]} 14. bxc3 {[%clk 0:02:24]}  Ne6 {[%clk 0:02:28]} 15. Be2 {[%clk 0:02:20]}  Ng5 {[%clk 0:02:23]} 16. O-O {[%clk 0:02:10]}  Qe7 {[%clk 0:02:23]} 17. Rab1 {[%clk 0:02:07]}  Bc6 {[%clk 0:02:23]} 18. f3 {[%clk 0:01:39]}  gxf3 {[%clk 0:02:14]} 19. Bxf3 {[%clk 0:01:37]}  Rg8 {[%clk 0:02:13]} 20. Kh1 {[%clk 0:01:35]}  O-O-O {[%clk 0:02:13]} 21. a4 {[%clk 0:01:30]}  Kb8 {[%clk 0:02:04]} 22. a5 {[%clk 0:01:30]}  Qe6 {[%clk 0:02:03]} 23. a6 {[%clk 0:01:20]}  b6 {[%clk 0:02:02]} 24. Rb4 {[%clk 0:01:13]}  Nd7 {[%clk 0:02:01]} 25. Nb3 {[%clk 0:01:06]}  Nc5 {[%clk 0:01:59]} 26. Qc2 {[%clk 0:01:06]}  Ncxe4 {[%clk 0:01:40]} 27. Na5 {[%clk 0:00:57]}  Ba8 {[%clk 0:01:39]} 28. Bxg5 {[%clk 0:00:43]}  hxg5 {[%clk 0:01:36]} 29. Bxe4 {[%clk 0:00:41]}  Bxe4 {[%clk 0:01:18]} 30. Qxe4 {[%clk 0:00:41]}  d5 {[%clk 0:01:19]} 31. cxd5 {[%clk 0:00:39]}  Rxd5 {[%clk 0:01:19]} 32. Nb3 {[%clk 0:00:21]}  c6 {[%clk 0:01:18]} 33. c4 {[%clk 0:00:17]}  Rd2 {[%clk 0:01:15]} 34. Nxd2 {[%clk 0:00:16]}  Rh8 {[%clk 0:01:14]} 35. Nf3 {[%clk 0:00:13]}  f6 {[%clk 0:01:14]} 36. Nd4 {[%clk 0:00:12]}  Qd6 {[%clk 0:01:13]} 37. Nxc6+ {[%clk 0:00:10]}  Kc7 {[%clk 0:01:12]} 38. Rb5 {[%clk 0:00:08]}  Qxc6 {[%clk 0:01:11]} 39. Qxc6+ {[%clk 0:00:08]}  Kxc6 {[%clk 0:01:12]} 40. Rd1 {[%clk 0:00:07]}  Rf8 {[%clk 0:01:10]} 41. Kg1 {[%clk 0:00:07]}  e4 {[%clk 0:01:09]} 42. Kf2 {[%clk 0:00:07]}  f5 {[%clk 0:01:09]} 43. g3 {[%clk 0:00:06]}  f4 {[%clk 0:01:09]} 44. Rxg5 {[%clk 0:00:07]}  e3+ {[%clk 0:01:06]} 45. Ke2 {[%clk 0:00:07]}  f3+ {[%clk 0:00:59]} 46. Kxe3 {[%clk 0:00:06]}  f2 {[%clk 0:00:59]} 47. Rf1 {[%clk 0:00:06]}  Rd8 {[%clk 0:00:58]} 48. Kxf2 {[%clk 0:00:06]}  Rd4 {[%clk 0:00:57]} 49. Rg6+ {[%clk 0:00:05]}  Kc5 {[%clk 0:00:56]} 50. Rc1 {[%clk 0:00:05]}  Rd2+ {[%clk 0:00:54]} 51. Kf3 {[%clk 0:00:06]}  Ra2 {[%clk 0:00:55]} 52. Rg5+ {[%clk 0:00:06]}  Kc6 {[%clk 0:00:55]} 53. Rg6+ {[%clk 0:00:06]}  Kc5 {[%clk 0:00:55]} 54. h4 {[%clk 0:00:06]}  Rxa6 {[%clk 0:00:55]} 55. h5 {[%clk 0:00:06]}  b5 {[%clk 0:00:52]} 56. Rxa6 {[%clk 0:00:05]} 1-0


[Site "https://www.chess.com"]

[Event "Titled Tuesday Blitz September 27 Early 2022"]
[White "Sychev, Klementy"]
[Black "Xu, Yi"]
[WhiteFideId "4114060"]
[BlackFideId "8605564"]
[WhiteElo "2685"]
[BlackElo "2853"]
[Result "1-0"]
[Round "05"]
[TimeControl "180+1"]
[Date "2022.09.27"]
[WhiteClock "0:00:06"]
[BlackClock "0:00:03"]

1. d4 {[%clk 0:03:00]}  Nf6 {[%clk 0:03:00]} 2. c4 {[%clk 0:03:01]}  e6 {[%clk 0:03:00]} 3. Nc3 {[%clk 0:03:01]}  Bb4 {[%clk 0:03:00]} 4. Bf4 {[%clk 0:03:02]}  O-O {[%clk 0:02:57]} 5. Qb3 {[%clk 0:03:02]}  Bxc3+ {[%clk 0:02:48]} 6. Qxc3 {[%clk 0:03:01]}  d5 {[%clk 0:02:49]} 7. e3 {[%clk 0:02:53]}  b6 {[%clk 0:02:41]} 8. c5 {[%clk 0:02:40]}  Ne4 {[%clk 0:02:34]} 9. Qc2 {[%clk 0:02:39]}  bxc5 {[%clk 0:02:33]} 10. dxc5 {[%clk 0:02:38]}  c6 {[%clk 0:02:16]} 11. Bd3 {[%clk 0:02:37]}  Qa5+ {[%clk 0:02:13]} 12. Kf1 {[%clk 0:02:37]}  Ba6 {[%clk 0:02:02]} 13. Ne2 {[%clk 0:02:11]}  Bxd3 {[%clk 0:02:00]} 14. Qxd3 {[%clk 0:02:11]}  Na6 {[%clk 0:01:56]} 15. f3 {[%clk 0:02:10]}  Naxc5 {[%clk 0:01:53]} 16. Qc2 {[%clk 0:02:09]}  g5 {[%clk 0:01:13]} 17. Bg3 {[%clk 0:01:54]}  Qd2 {[%clk 0:01:00]} 18. Qxd2 {[%clk 0:01:39]}  Nxd2+ {[%clk 0:01:00]} 19. Kg1 {[%clk 0:01:39]}  Nc4 {[%clk 0:00:51]} 20. b3 {[%clk 0:01:39]}  Nxe3 {[%clk 0:00:52]} 21. Bd6 {[%clk 0:01:39]}  Nd3 {[%clk 0:00:52]} 22. Bxf8 {[%clk 0:01:34]}  Kxf8 {[%clk 0:00:53]} 23. h4 {[%clk 0:01:31]}  c5 {[%clk 0:00:43]} 24. hxg5 {[%clk 0:01:29]}  Kg7 {[%clk 0:00:43]} 25. Rh4 {[%clk 0:01:16]}  c4 {[%clk 0:00:43]} 26. bxc4 {[%clk 0:01:15]}  Rb8 {[%clk 0:00:36]} 27. cxd5 {[%clk 0:00:48]}  exd5 {[%clk 0:00:33]} 28. Rd4 {[%clk 0:00:37]}  Nc2 {[%clk 0:00:29]} 29. Rxd3 {[%clk 0:00:37]}  Nxa1 {[%clk 0:00:30]} 30. Rxd5 {[%clk 0:00:34]}  Rb2 {[%clk 0:00:30]} 31. Nd4 {[%clk 0:00:24]}  Nc2 {[%clk 0:00:20]} 32. Nf5+ {[%clk 0:00:20]}  Kg6 {[%clk 0:00:21]} 33. Ne7+ {[%clk 0:00:19]}  Kg7 {[%clk 0:00:19]} 34. Ra5 {[%clk 0:00:18]}  Ne3 {[%clk 0:00:18]} 35. g4 {[%clk 0:00:11]}  Rg2+ {[%clk 0:00:18]} 36. Kh1 {[%clk 0:00:11]}  Rf2 {[%clk 0:00:17]} 37. Re5 {[%clk 0:00:08]}  Nc4 {[%clk 0:00:05]} 38. Nf5+ {[%clk 0:00:07]}  Kg6 {[%clk 0:00:05]} 39. Rc5 {[%clk 0:00:04]}  Nd2 {[%clk 0:00:05]} 40. Nh4+ {[%clk 0:00:04]}  Kg7 {[%clk 0:00:05]} 41. Rc2 {[%clk 0:00:04]}  Rf1+ {[%clk 0:00:03]} 42. Kg2 {[%clk 0:00:05]}  Rd1 {[%clk 0:00:04]} 43. Nf5+ {[%clk 0:00:05]}  Kg6 {[%clk 0:00:04]} 44. Ne3 {[%clk 0:00:06]}  Nxf3 {[%clk 0:00:03]} 45. Rc6+ {[%clk 0:00:04]}  Kxg5 {[%clk 0:00:03]} 46. Nxd1 {[%clk 0:00:05]}  Ne5 {[%clk 0:00:03]} 47. Rc5 {[%clk 0:00:05]}  Kf4 {[%clk 0:00:03]} 48. Nf2 {[%clk 0:00:04]}  Nf3 {[%clk 0:00:02]} 49. Rf5+ {[%clk 0:00:04]}  Ke3 {[%clk 0:00:03]} 50. Rxf3+ {[%clk 0:00:05]}  Ke2 {[%clk 0:00:03]} 51. Rxf7 {[%clk 0:00:06]} 1-0


[Site "https://www.chess.com"]

[Event "Titled Tuesday Blitz September 27 Early 2022"]
[White "Sztokbant, Bernardo Vainzoff"]
[Black "Czernek, Tymon"]
[WhiteFideId "2115956"]
[BlackFideId "1199510"]
[WhiteElo "2172"]
[BlackElo "2007"]
[Result "1-0"]
[Round "05"]
[TimeControl "180+1"]
[Date "2022.09.27"]
[WhiteClock "0:00:08"]
[BlackClock "0:00:25"]

1. e4 {[%clk 0:02:34]}  c5 {[%clk 0:02:54]} 2. Nf3 {[%clk 0:02:34]}  d6 {[%clk 0:02:55]} 3. d4 {[%clk 0:02:32]}  cxd4 {[%clk 0:02:55]} 4. Nxd4 {[%clk 0:02:32]}  Nf6 {[%clk 0:02:56]} 5. Nc3 {[%clk 0:02:29]}  a6 {[%clk 0:02:56]} 6. Be2 {[%clk 0:02:23]}  e5 {[%clk 0:02:56]} 7. Nb3 {[%clk 0:02:22]}  Be7 {[%clk 0:02:56]} 8. O-O {[%clk 0:02:23]}  O-O {[%clk 0:02:56]} 9. a4 {[%clk 0:02:22]}  Be6 {[%clk 0:02:54]} 10. f4 {[%clk 0:02:22]}  exf4 {[%clk 0:02:55]} 11. Bxf4 {[%clk 0:02:21]}  Nc6 {[%clk 0:02:56]} 12. Kh1 {[%clk 0:02:19]}  Ne5 {[%clk 0:02:56]} 13. Nd4 {[%clk 0:02:19]}  Qd7 {[%clk 0:02:54]} 14. Qe1 {[%clk 0:02:10]}  Rfd8 {[%clk 0:02:47]} 15. Rd1 {[%clk 0:02:09]}  Qc7 {[%clk 0:02:29]} 16. Qg3 {[%clk 0:02:05]}  Ng6 {[%clk 0:02:24]} 17. Bg5 {[%clk 0:02:03]}  Rac8 {[%clk 0:02:11]} 18. Nf5 {[%clk 0:01:37]}  Bxf5 {[%clk 0:02:11]} 19. exf5 {[%clk 0:01:38]}  Ne5 {[%clk 0:01:49]} 20. Bxf6 {[%clk 0:01:31]}  Bxf6 {[%clk 0:01:50]} 21. Nd5 {[%clk 0:01:31]}  Qxc2 {[%clk 0:01:50]} 22. Nxf6+ {[%clk 0:01:31]}  Kh8 {[%clk 0:01:51]} 23. Nh5 {[%clk 0:01:26]}  g6 {[%clk 0:01:47]} 24. fxg6 {[%clk 0:01:17]}  fxg6 {[%clk 0:01:42]} 25. Nf4 {[%clk 0:01:09]}  Rf8 {[%clk 0:01:38]} 26. Rxd6 {[%clk 0:00:41]}  Qxb2 {[%clk 0:01:32]} 27. Rfd1 {[%clk 0:00:20]}  Rce8 {[%clk 0:01:07]} 28. Qh4 {[%clk 0:00:16]}  Rxf4 {[%clk 0:00:54]} 29. Qxf4 {[%clk 0:00:15]}  Qxe2 {[%clk 0:00:54]} 30. Qf6+ {[%clk 0:00:15]}  Kg8 {[%clk 0:00:55]} 31. Rd8 {[%clk 0:00:11]}  Nd7 {[%clk 0:00:25]} 32. R8xd7 {[%clk 0:00:07]}  Qe1+ {[%clk 0:00:25]} 33. Qf1 {[%clk 0:00:08]} 1-0


[Site "https://www.chess.com"]

[Event "Titled Tuesday Blitz September 27 Early 2022"]
[White "Tologon tegin, Semetei"]
[Black "Amgalantengis, Enkh-Amgalan"]
[WhiteFideId "13800574"]
[BlackFideId "4903536"]
[WhiteElo "2174"]
[BlackElo "1719"]
[Result "1-0"]
[Round "05"]
[TimeControl "180+1"]
[Date "2022.09.27"]
[WhiteClock "0:00:48"]
[BlackClock "0:00:02"]

1. Nf3 {[%clk 0:03:00]}  d5 {[%clk 0:02:59]} 2. g3 {[%clk 0:03:00]}  Nf6 {[%clk 0:03:00]} 3. Bg2 {[%clk 0:02:57]}  Bf5 {[%clk 0:03:01]} 4. O-O {[%clk 0:02:57]}  e6 {[%clk 0:03:01]} 5. d3 {[%clk 0:02:57]}  h6 {[%clk 0:03:01]} 6. Nbd2 {[%clk 0:02:56]}  Bh7 {[%clk 0:03:00]} 7. Qe1 {[%clk 0:02:55]}  c6 {[%clk 0:02:58]} 8. e4 {[%clk 0:02:55]}  Be7 {[%clk 0:02:48]} 9. Qe2 {[%clk 0:02:49]}  O-O {[%clk 0:02:40]} 10. b3 {[%clk 0:02:49]}  Na6 {[%clk 0:02:35]} 11. Bb2 {[%clk 0:02:49]}  Nb4 {[%clk 0:02:30]} 12. Rfc1 {[%clk 0:02:36]}  Qc7 {[%clk 0:02:25]} 13. a3 {[%clk 0:02:32]}  Na6 {[%clk 0:02:21]} 14. b4 {[%clk 0:02:31]}  c5 {[%clk 0:02:17]} 15. b5 {[%clk 0:02:31]}  Nb8 {[%clk 0:02:16]} 16. c4 {[%clk 0:02:30]}  d4 {[%clk 0:02:14]} 17. a4 {[%clk 0:02:26]}  Nbd7 {[%clk 0:02:07]} 18. a5 {[%clk 0:02:26]}  e5 {[%clk 0:01:58]} 19. Nh4 {[%clk 0:02:23]}  b6 {[%clk 0:01:56]} 20. Nf5 {[%clk 0:02:17]}  Rfe8 {[%clk 0:01:28]} 21. axb6 {[%clk 0:01:59]}  Nxb6 {[%clk 0:01:25]} 22. Ra6 {[%clk 0:01:59]}  Bf8 {[%clk 0:01:14]} 23. Rca1 {[%clk 0:01:57]}  Nfd7 {[%clk 0:01:11]} 24. Nb3 {[%clk 0:01:50]}  Re6 {[%clk 0:00:53]} 25. Bc1 {[%clk 0:01:48]}  Ree8 {[%clk 0:00:35]} 26. Bd2 {[%clk 0:01:44]}  Nb8 {[%clk 0:00:32]} 27. R6a3 {[%clk 0:01:41]}  N8d7 {[%clk 0:00:29]} 28. h4 {[%clk 0:01:35]}  Re6 {[%clk 0:00:17]} 29. h5 {[%clk 0:01:35]}  Ree8 {[%clk 0:00:16]} 30. Na5 {[%clk 0:01:24]}  Re6 {[%clk 0:00:16]} 31. Nc6 {[%clk 0:01:24]}  Rxc6 {[%clk 0:00:16]} 32. bxc6 {[%clk 0:01:24]}  Qxc6 {[%clk 0:00:17]} 33. Rxa7 {[%clk 0:01:24]}  Rxa7 {[%clk 0:00:16]} 34. Rxa7 {[%clk 0:01:25]}  Qc8 {[%clk 0:00:12]} 35. Qg4 {[%clk 0:01:16]}  Qb8 {[%clk 0:00:11]} 36. Nxh6+ {[%clk 0:01:15]}  Kh8 {[%clk 0:00:10]} 37. Nxf7+ {[%clk 0:01:15]}  Kg8 {[%clk 0:00:11]} 38. Rxd7 {[%clk 0:01:13]}  Nxd7 {[%clk 0:00:09]} 39. Qxd7 {[%clk 0:01:13]}  Qb1+ {[%clk 0:00:07]} 40. Bf1 {[%clk 0:01:13]}  Qd1 {[%clk 0:00:06]} 41. Ng5 {[%clk 0:01:04]}  Qxh5 {[%clk 0:00:04]} 42. Qe6+ {[%clk 0:01:02]}  Kh8 {[%clk 0:00:03]} 43. Nf7+ {[%clk 0:00:56]}  Kg8 {[%clk 0:00:03]} 44. Nxe5+ {[%clk 0:00:56]}  Kh8 {[%clk 0:00:03]} 45. Nf7+ {[%clk 0:00:56]}  Kg8 {[%clk 0:00:03]} 46. Ng5+ {[%clk 0:00:55]}  Kh8 {[%clk 0:00:03]} 47. Qc8 {[%clk 0:00:51]}  Kg8 {[%clk 0:00:02]} 48. Bh3 {[%clk 0:00:48]} 1-0


[Site "https://www.chess.com"]